bitfinex/quotes_BTCUSD_20230906
["timestamp","ask_amount","ask_price","bid_price","bid_amount"]
[1694015917706,5.5762831,25624.0,25623.0,0.01989699]
[1694015917919,5.68571741,25624.0,25623.0,0.01989699]
[1694015918125,5.67473741,25624.0,25623.0,0.01989699]
[1694015918327,5.67995741,25624.0,25623.0,0.01989699]
[1694015918534,5.68031741,25624.0,25623.0,0.01989699]
[1694015918747,5.67551741,25624.0,25623.0,0.01989699]
[1694015918949,5.67545741,25624.0,25623.0,0.01989699]
[1694015919151,5.67401741,25624.0,25623.0,0.01989699]
[1694015919327,5.67389741,25624.0,25623.0,0.01989699]
[1694015919530,5.81821887,25624.0,25623.0,0.01989699]
[1694015919742,5.81827887,25624.0,25623.0,0.01989699]
[1694015919947,5.81425887,25624.0,25623.0,0.01989699]
[1694015920149,5.81305887,25624.0,25623.0,0.01989699]
[1694015920356,5.81221887,25624.0,25623.0,0.01989699]
[1694015920566,5.72024456,25624.0,25623.0,0.01989699]
[1694015920778,5.72300456,25624.0,25623.0,0.01989699]
[1694015920989,5.72360456,25624.0,25623.0,0.01989699]
[1694015921203,5.99299318,25624.0,25623.0,0.01989699]
[1694015921408,5.85299172,25624.0,25623.0,0.01989699]
[1694015921622,6.0864675,25624.0,25623.0,0.01989699]
[1694015921827,5.85191172,25624.0,25623.0,0.01989699]
[1694015922033,5.85035172,25624.0,25623.0,0.01989699]
[1694015922238,5.84999172,25624.0,25623.0,0.01989699]
[1694015922451,5.89627888,25624.0,25623.0,0.01989699]
[1694015922657,5.89813888,25624.0,25623.0,0.01989699]
[1694015922869,5.89723888,25624.0,25623.0,0.01989699]
[1694015923074,5.89789888,25624.0,25623.0,0.01989699]
[1694015923292,5.89789888,25624.0,25621.0,0.001]
[1694015923293,0.72953044,25622.0,25621.0,0.001]
[1694015923506,1.04953044,25620.0,25619.0,0.01989699]
[1694015923712,3.32522518,25620.0,25619.0,0.01989699]
[1694015923925,5.29024779,25620.0,25619.0,0.01989699]
[1694015924139,5.36446779,25620.0,25619.0,0.01989699]
[1694015924346,6.47586618,25620.0,25619.0,0.01989699]
[1694015924574,6.71450628,25620.0,25619.0,0.01989699]
[1694015924756,6.71492628,25620.0,25619.0,0.01989699]
[1694015925002,6.5312142,25620.0,25619.0,0.01989699]
[1694015925210,6.5340942,25620.0,25619.0,0.01989699]
[1694015925421,6.3405141,25620.0,25619.0,0.01989699]
[1694015925629,6.3681741,25620.0,25619.0,0.01989699]
[1694015925844,6.59476571,25620.0,25619.0,0.01989699]
[1694015926055,6.56524571,25620.0,25619.0,0.01989699]
[1694015926269,6.58498571,25620.0,25619.0,0.01989699]
[1694015926498,6.58294571,25620.0,25619.0,0.01989699]
[1694015926703,6.77117765,25620.0,25619.0,0.01989699]
[1694015926907,6.77219765,25620.0,25619.0,0.01989699]
[1694015927111,6.77057765,25620.0,25619.0,0.01989699]
[1694015927313,6.77189765,25620.0,25619.0,0.01989699]
[1694015927570,6.77123765,25620.0,25619.0,0.01989699]
[1694015927834,6.53690604,25620.0,25619.0,0.01989699]
[1694015928055,6.53552604,25620.0,25619.0,0.01989699]
[1694015928271,6.53432604,25620.0,25619.0,0.01989699]
[1694015928457,6.53378604,25620.0,25619.0,0.01989699]
[1694015928670,6.53330604,25620.0,25619.0,0.01989699]
[1694015928808,6.53222604,25620.0,25619.0,0.01989699]
[1694015929013,6.53228604,25620.0,25619.0,0.01989699]
[1694015929219,6.40250503,25620.0,25619.0,0.01989699]
[1694015929497,6.28040503,25620.0,25619.0,0.01989699]
[1694015931169,6.28040503,25620.0,25619.0,0.06313421]
[1694015931456,6.28040503,25620.0,25619.0,0.01989699]
[1694015931735,6.36626503,25620.0,25619.0,0.01989699]
[1694015932029,6.35936503,25620.0,25619.0,0.01489699]
[1694015932271,6.45106571,25620.0,25619.0,0.01489699]
[1694015932776,6.45136571,25620.0,25619.0,0.01489699]
[1694015932777,6.45088571,25620.0,25619.0,0.01489699]
[1694015933028,6.4040668,25620.0,25619.0,0.01489699]
[1694015933271,6.63803841,25620.0,25619.0,0.01489699]
[1694015933512,6.63839841,25620.0,25619.0,0.01489699]
[1694015933753,6.4049068,25620.0,25619.0,0.01489699]
[1694015934014,6.4037068,25620.0,25619.0,0.01489699]
[1694015934263,6.4042468,25620.0,25619.0,0.01489699]
[1694015934505,6.3963868,25620.0,25619.0,0.01489699]
[1694015934740,6.3992668,25620.0,25619.0,0.01489699]
[1694015934983,6.4049068,25620.0,25619.0,0.01489699]
[1694015935222,6.4321468,25620.0,25619.0,0.01489699]
[1694015935468,6.4250668,25620.0,25619.0,0.01489699]
[1694015935711,6.4194868,25620.0,25619.0,0.01489699]
[1694015935990,6.4194268,25620.0,25619.0,0.01489699]
[1694015936208,6.4158868,25620.0,25619.0,0.01489699]
[1694015936488,6.4159468,25620.0,25619.0,0.01489699]
[1694015936766,6.55228647,25620.0,25619.0,0.01489699]
[1694015937048,6.55222647,25620.0,25619.0,0.01489699]
[1694015937300,6.55048711,25620.0,25619.0,0.01489699]
[1694015937604,6.4091068,25620.0,25619.0,0.01489699]
[1694015937834,6.54730112,25620.0,25619.0,0.01489699]
[1694015938089,6.54016112,25620.0,25619.0,0.01489699]
[1694015938344,6.53638112,25620.0,25619.0,0.01489699]
[1694015938585,6.53608112,25620.0,25619.0,0.01489699]
[1694015938857,6.53626112,25620.0,25619.0,0.01489699]
[1694015939079,6.54604112,25620.0,25619.0,0.01489699]
[1694015939549,6.4043068,25620.0,25619.0,0.01489699]
[1694015939797,6.54489083,25620.0,25619.0,0.01489699]
[1694015940010,6.53961083,25620.0,25619.0,0.01489699]
[1694015940230,6.53691083,25620.0,25619.0,0.01489699]
[1694015940492,6.53673083,25620.0,25619.0,0.01489699]
[1694015940703,6.46749083,25620.0,25619.0,0.01489699]
[1694015941523,6.46749083,25620.0,25619.0,0.05853577]
[1694015941730,6.3271468,25620.0,25619.0,0.05853577]
[1694015942340,4.26918114,25620.0,25619.0,0.05853577]
[1694015942996,4.36274037,25620.0,25619.0,0.05853577]
[1694015943208,4.26918114,25620.0,25619.0,0.05853577]
[1694015944657,4.36273847,25620.0,25619.0,0.05853577]
[1694015945614,4.22239304,25620.0,25619.0,0.05853577]
[1694015945821,4.36273847,25620.0,25619.0,0.05853577]
[1694015946021,4.74938374,25620.0,25619.0,0.05853577]
[1694015947526,4.65582641,25620.0,25619.0,0.05853577]
[1694015947736,4.75464641,25620.0,25619.0,0.01489699]
[1694015947937,4.73580641,25620.0,25619.0,0.01489699]
[1694015948144,4.72986641,25620.0,25619.0,0.01489699]
[1694015948345,4.73256641,25620.0,25619.0,0.05858947]
[1694015948503,4.73508641,25620.0,25619.0,0.05858947]
[1694015948700,4.73724641,25620.0,25619.0,0.01489699]
[1694015948914,4.78423368,25620.0,25619.0,0.01489699]
[1694015949135,4.78345368,25620.0,25619.0,0.01489699]
[1694015949337,4.78327368,25620.0,25619.0,0.01489699]
[1694015949543,4.78231368,25620.0,25619.0,0.01489699]
[1694015949756,4.78219368,25620.0,25619.0,0.05858947]
[1694015949952,4.78261368,25620.0,25619.0,0.05858947]
[1694015950159,4.78243368,25620.0,25619.0,0.01489699]
[1694015950369,4.78381368,25620.0,25619.0,0.01489699]
[1694015950582,4.78375368,25620.0,25619.0,0.01489699]
[1694015950790,4.92271399,25620.0,25619.0,0.01489699]
[1694015951207,4.92475399,25620.0,25619.0,0.01489699]
[1694015951443,4.92505399,25620.0,25619.0,0.01489699]
[1694015951657,4.92541399,25620.0,25619.0,0.05858947]
[1694015951854,4.73820129,25620.0,25619.0,0.01489699]
[1694015952063,4.73310129,25620.0,25619.0,0.01489699]
[1694015952263,4.72872129,25620.0,25619.0,0.01489699]
[1694015952465,4.72632129,25620.0,25619.0,0.01489699]
[1694015952738,4.72542129,25620.0,25619.0,0.01489699]
[1694015952951,4.72896129,25620.0,25619.0,0.01489699]
[1694015953126,4.73118129,25620.0,25619.0,0.01489699]
[1694015953327,4.73112129,25620.0,25619.0,0.05858947]
[1694015953530,4.91905399,25620.0,25619.0,0.05858947]
[1694015953729,4.91953399,25620.0,25619.0,0.05858947]
[1694015953958,4.91947399,25620.0,25619.0,0.01489699]
[1694015954159,4.91935399,25620.0,25619.0,0.01489699]
[1694015954403,4.91929399,25620.0,25619.0,0.01489699]
[1694015954603,4.91923399,25620.0,25619.0,0.01489699]
[1694015954761,4.91912761,25620.0,25619.0,0.01489699]
[1694015954962,4.91750761,25620.0,25619.0,0.05860503]
[1694015955161,4.91726761,25620.0,25619.0,0.05860503]
[1694015955416,4.91714761,25620.0,25619.0,0.05860503]
[1694015955549,4.77577368,25620.0,25619.0,0.05860503]
[1694015955745,4.77583368,25620.0,25619.0,0.05860503]
[1694015955950,4.77391368,25620.0,25619.0,0.05860503]
[1694015956166,4.77349368,25620.0,25619.0,0.05860503]
[1694015956372,4.77271368,25620.0,25619.0,0.05860503]
[1694015956569,4.77589368,25620.0,25619.0,0.05860503]
[1694015956838,4.77511368,25620.0,25619.0,0.01489699]
[1694015957018,4.77589368,25620.0,25619.0,0.01489699]
[1694015957219,4.77487368,25620.0,25619.0,0.01489699]
[1694015957391,4.77367368,25620.0,25619.0,0.05855254]
[1694015957591,4.77373368,25620.0,25619.0,0.05855254]
[1694015957842,4.77367368,25620.0,25619.0,0.05855254]
[1694015958026,4.77415368,25620.0,25619.0,0.05855254]
[1694015958234,4.77397368,25620.0,25619.0,0.01489699]
[1694015958584,5.00680529,25620.0,25619.0,0.01489699]
[1694015958829,5.00590529,25620.0,25619.0,0.05855254]
[1694015959039,5.00650529,25620.0,25619.0,0.05855254]
[1694015959249,5.01430529,25620.0,25619.0,0.05855254]
[1694015959419,5.01460529,25620.0,25619.0,0.05855254]
[1694015959618,5.01634529,25620.0,25619.0,0.01489699]
[1694015959885,5.01574529,25620.0,25619.0,0.01489699]
[1694015960128,5.01490529,25620.0,25619.0,0.01489699]
[1694015960332,5.01472529,25620.0,25619.0,0.05855254]
[1694015960510,5.01556529,25620.0,25619.0,0.05855254]
[1694015960737,5.01550529,25620.0,25619.0,0.05855254]
[1694015961031,5.01538529,25620.0,25619.0,0.01489699]
[1694015961244,5.01526529,25620.0,25619.0,0.01489699]
[1694015961457,5.01658529,25620.0,25619.0,0.01489699]
[1694015961662,4.82913259,25620.0,25619.0,0.01489699]
[1694015961882,4.82907259,25620.0,25619.0,0.01489699]
[1694015962033,4.82865259,25620.0,25619.0,0.01489699]
[1694015962443,4.82991259,25620.0,25619.0,0.01489699]
[1694015962665,4.82901259,25620.0,25619.0,0.01489699]
[1694015962898,4.82895259,25620.0,25619.0,0.01489699]
[1694015963098,4.82679259,25620.0,25619.0,0.01489699]
[1694015963302,4.59258098,25620.0,25619.0,0.01489699]
[1694015963476,4.82527901,25620.0,25619.0,0.01489699]
[1694015963832,4.82455901,25620.0,25619.0,0.01160981]
[1694015964183,4.82269901,25620.0,25619.0,0.01160981]
[1694015964378,4.82227901,25620.0,25619.0,0.01160981]
[1694015964586,4.58820098,25620.0,25619.0,0.01160981]
[1694015964795,4.58712098,25620.0,25619.0,0.01160981]
[1694015964948,4.58694098,25620.0,25619.0,0.01160981]
[1694015965146,4.58838098,25620.0,25619.0,0.01160981]
[1694015965350,4.58808098,25620.0,25619.0,0.01160981]
[1694015965582,4.59000098,25620.0,25619.0,0.01160981]
[1694015965771,4.58976098,25620.0,25619.0,0.01160981]
[1694015965980,4.58988098,25620.0,25619.0,0.01160981]
[1694015966155,4.59090098,25620.0,25619.0,0.01160981]
[1694015966352,4.59942098,25620.0,25619.0,0.01160981]
[1694015966710,4.61412098,25620.0,25619.0,0.01160981]
[1694015966914,4.61172098,25620.0,25619.0,0.01160981]
[1694015967129,1.04953044,25616.0,25615.0,0.01999699]
[1694015967329,5.34730634,25616.0,25615.0,0.01999699]
[1694015967538,5.56890823,25616.0,25615.0,0.01999699]
[1694015967741,5.33319675,25616.0,25615.0,0.01999699]
[1694015967945,5.56406366,25616.0,25615.0,0.01999699]
[1694015968149,5.56358366,25616.0,25615.0,0.01999699]
[1694015968354,5.57186366,25616.0,25615.0,0.01999699]
[1694015968561,5.57012366,25616.0,25615.0,0.01999699]
[1694015968824,5.72767658,25616.0,25615.0,0.01999699]
[1694015969025,5.72701658,25616.0,25615.0,0.01999699]
[1694015969234,5.72419658,25616.0,25615.0,0.01999699]
[1694015969456,5.73931658,25616.0,25615.0,0.01999699]
[1694015969672,5.51455275,25616.0,25615.0,0.01999699]
[1694015969882,5.72804788,25616.0,25615.0,0.01999699]
[1694015970091,5.74994788,25616.0,25615.0,0.01999699]
[1694015970294,5.74964788,25616.0,25615.0,0.01999699]
[1694015970471,5.77550788,25616.0,25615.0,0.01999699]
[1694015970708,5.76878788,25616.0,25615.0,0.01999699]
[1694015970916,5.74304788,25616.0,25615.0,0.06066545]
[1694015971127,5.74244788,25616.0,25615.0,0.06066545]
[1694015971333,5.74274788,25616.0,25615.0,0.06066545]
[1694015971539,5.76668788,25616.0,25615.0,0.01999699]
[1694015971746,5.76632788,25616.0,25615.0,0.01999699]
[1694015971953,5.69696788,25616.0,25615.0,0.06068375]
[1694015972170,5.69696788,25616.0,25615.0,0.01999699]
[1694015972790,5.95093095,25616.0,25615.0,0.01999699]
[1694015972999,5.95057095,25616.0,25615.0,0.01999699]
[1694015973404,5.95057095,25616.0,25615.0,0.06068375]
[1694015973617,5.95039095,25616.0,25615.0,0.01999699]
[1694015973802,5.88433095,25616.0,25615.0,0.01999699]
[1694015974764,5.65007582,25616.0,25615.0,0.01999699]
[1694015974972,5.69696788,25616.0,25615.0,0.01999699]
[1694015975228,5.88431031,25616.0,25615.0,0.01999699]
[1694015975859,5.65005518,25616.0,25615.0,0.01999699]
[1694015976681,5.88431031,25616.0,25615.0,0.01999699]
[1694015976912,5.65005518,25616.0,25615.0,0.01999699]
[1694015977726,5.88431031,25616.0,25615.0,0.01999699]
[1694015978594,5.72935727,25616.0,25615.0,0.01999699]
[1694015979650,5.54201484,25616.0,25615.0,0.01999699]
[1694015980066,4.64201484,25616.0,25615.0,0.01999699]
[1694015980279,3.69221872,25616.0,25615.0,0.01999699]
[1694015980499,3.64538433,25616.0,25615.0,0.01999699]
[1694015980913,4.06949595,25616.0,25615.0,0.01999699]
[1694015981118,3.64538433,25616.0,25615.0,0.01999699]
[1694015981321,3.64538433,25616.0,25615.0,0.06156059]
[1694015981754,2.08386033,25616.0,25615.0,0.06156059]
[1694015981941,2.17751456,25616.0,25615.0,0.06156059]
[1694015982238,2.95827656,25616.0,25615.0,0.06156059]
[1694015982481,3.73903856,25616.0,25615.0,0.06156059]
[1694015982693,3.64538433,25616.0,25615.0,0.06156059]
[1694015982897,4.1256853,25616.0,25615.0,0.06156059]
[1694015983180,4.12568463,25616.0,25615.0,0.06156059]
[1694015983995,3.73903936,25616.0,25615.0,0.06156059]
[1694015984196,3.64538433,25616.0,25615.0,0.06156059]
[1694015987457,4.42614633,25616.0,25615.0,0.06156059]
[1694015987669,3.64538433,25616.0,25615.0,0.06156059]
[1694015990707,3.83270534,25616.0,25615.0,0.06156059]
[1694015990911,4.21935061,25616.0,25615.0,0.06156059]
[1694015991136,4.34145061,25616.0,25615.0,0.06156059]
[1694015991391,5.12221261,25616.0,25615.0,0.06156059]
[1694015992217,4.34145061,25616.0,25615.0,0.06156059]
[1694015996351,3.95480534,25616.0,25615.0,0.06156059]
[1694015997285,4.73556734,25616.0,25615.0,0.06156059]
[1694015998692,3.81431872,25616.0,25615.0,0.06156059]
[1694015999273,4.59508072,25616.0,25615.0,0.06156059]
[1694015999689,4.53508072,25616.0,25615.0,0.06156059]
[1694015999911,5.21598112,25616.0,25615.0,0.06156059]
[1694016000115,4.92172599,25616.0,25615.0,0.06156059]
[1694016000316,5.21605577,25616.0,25615.0,0.06156059]
[1694016000768,5.02865542,25616.0,25615.0,0.06156059]
[1694016001089,5.00865542,25616.0,25615.0,0.06156059]
[1694016001217,5.02846945,25616.0,25615.0,0.06156059]
[1694016003462,5.00846945,25616.0,25615.0,0.06156059]
[1694016004339,4.62182418,25616.0,25615.0,0.06156059]
[1694016004753,4.38757374,25616.0,25615.0,0.06156059]
[1694016005181,5.36173374,25616.0,25615.0,0.06156059]
[1694016005383,5.36827374,25616.0,25615.0,0.06156059]
[1694016005587,5.36881374,25616.0,25615.0,0.06156059]
[1694016005802,5.75695901,25616.0,25615.0,0.06156059]
[1694016006152,5.75467901,25616.0,25615.0,0.06156059]
[1694016006357,5.74993901,25616.0,25615.0,0.06156059]
[1694016006552,5.75593901,25616.0,25615.0,0.06156059]
[1694016006758,5.75809901,25616.0,25615.0,0.06156059]
[1694016007015,5.75803901,25616.0,25615.0,0.06156059]
[1694016007236,4.97585374,25616.0,25615.0,0.06156059]
[1694016007439,4.90757374,25616.0,25615.0,0.06156059]
[1694016008013,4.88357374,25616.0,25615.0,0.06156059]
[1694016008469,3.96071174,25616.0,25615.0,0.06156059]
[1694016009072,3.98471174,25616.0,25615.0,0.06156059]
[1694016011891,5.15211901,25616.0,25615.0,0.06156059]
[1694016013575,5.27421901,25616.0,25615.0,0.06156059]
[1694016014272,5.84887712,25616.0,25615.0,0.06156059]
[1694016014476,5.84585901,25616.0,25615.0,0.06156059]
[1694016014722,5.88720747,25616.0,25615.0,0.01999699]
[1694016014942,3.27251247,25615.0,25614.0,0.01989699]
[1694016015134,4.55681613,25615.0,25614.0,0.01989699]
[1694016015545,4.67417613,25615.0,25614.0,0.01989699]
[1694016015750,4.67321613,25615.0,25614.0,0.01989699]
[1694016015973,4.67729613,25615.0,25614.0,0.01989699]
[1694016016174,4.70057613,25615.0,25614.0,0.01989699]
[1694016016375,4.73021613,25615.0,25614.0,0.01989699]
[1694016016667,4.72871613,25615.0,25614.0,0.01989699]
[1694016016833,4.72397613,25615.0,25614.0,0.01989699]
[1694016017023,4.72187613,25615.0,25614.0,0.01989699]
[1694016017217,4.71929613,25615.0,25614.0,0.01989699]
[1694016017417,4.72145613,25615.0,25614.0,0.01989699]
[1694016017665,4.88625525,25615.0,25614.0,0.01989699]
[1694016017846,4.88607525,25615.0,25614.0,0.01989699]
[1694016018045,4.88511525,25615.0,25614.0,0.01989699]
[1694016018224,4.86147525,25615.0,25614.0,0.01989699]
[1694016018436,4.88703525,25615.0,25614.0,0.01989699]
[1694016020820,5.13391224,25615.0,25614.0,0.01989699]
[1694016021004,5.14315224,25615.0,25614.0,0.01989699]
[1694016021204,5.13961224,25615.0,25614.0,0.01989699]
[1694016021407,5.13931224,25615.0,25614.0,0.01989699]
[1694016021611,5.11507224,25615.0,25614.0,0.01989699]
[1694016021814,5.13967224,25615.0,25614.0,0.01989699]
[1694016022251,5.13973224,25615.0,25614.0,0.01989699]
[1694016022455,5.11585224,25615.0,25614.0,0.01989699]
[1694016022581,5.13967224,25615.0,25614.0,0.01989699]
[1694016022786,5.16343224,25615.0,25614.0,0.01989699]
[1694016023063,5.16319224,25615.0,25614.0,0.01989699]
[1694016023268,5.17135224,25615.0,25614.0,0.01989699]
[1694016023479,5.17165224,25615.0,25614.0,0.01989699]
[1694016023682,5.17135224,25615.0,25614.0,0.01989699]
[1694016023889,5.17099224,25615.0,25614.0,0.01989699]
[1694016024091,5.17081224,25615.0,25614.0,0.01989699]
[1694016024301,5.17117224,25615.0,25614.0,0.01989699]
[1694016024509,5.17153224,25615.0,25614.0,0.01989699]
[1694016024714,5.17123224,25615.0,25614.0,0.01989699]
[1694016024919,5.17135224,25615.0,25614.0,0.01989699]
[1694016025121,5.17087224,25615.0,25614.0,0.01989699]
[1694016025326,5.17063224,25615.0,25614.0,0.01989699]
[1694016025532,5.17003224,25615.0,25614.0,0.01989699]
[1694016025732,5.37778243,25615.0,25614.0,0.01989699]
[1694016025943,0.9,25612.0,25611.0,0.0001]
[1694016026153,6.09180411,25612.0,25611.0,0.0001]
[1694016026357,6.75414364,25612.0,25611.0,0.0001]
[1694016026567,7.25404392,25612.0,25611.0,0.0001]
[1694016026771,7.25698392,25612.0,25611.0,0.0001]
[1694016026979,7.44513069,25612.0,25611.0,0.0001]
[1694016027165,7.44693069,25612.0,25611.0,0.0001]
[1694016027373,7.47075069,25612.0,25611.0,0.0001]
[1694016027575,7.44633069,25612.0,25611.0,0.0001]
[1694016027783,7.43313069,25612.0,25611.0,0.0001]
[1694016027993,7.22823104,25612.0,25611.0,0.0001]
[1694016028202,7.23387104,25612.0,25611.0,0.0001]
[1694016028425,7.28188392,25612.0,25611.0,0.0001]
[1694016028602,7.28230392,25612.0,25611.0,0.0001]
[1694016028810,7.28020392,25612.0,25611.0,0.0001]
[1694016029029,7.27846392,25612.0,25611.0,0.0001]
[1694016029230,7.27918392,25612.0,25611.0,0.0001]
[1694016029392,7.07776427,25612.0,25611.0,0.0001]
[1694016029570,7.07314427,25612.0,25611.0,0.0001]
[1694016029771,7.04908427,25612.0,25611.0,0.0001]
[1694016030060,7.2806724,25612.0,25611.0,0.0001]
[1694016030266,1.54934447,25609.0,25608.0,0.01999699]
[1694016030467,6.13616064,25609.0,25608.0,0.01999699]
[1694016030698,7.22984877,25609.0,25608.0,0.01999699]
[1694016030935,7.01206017,25609.0,25608.0,0.01999699]
[1694016031142,7.10381729,25609.0,25608.0,0.01999699]
[1694016031446,7.03715729,25609.0,25608.0,0.01999699]
[1694016031578,7.10507729,25609.0,25608.0,0.01999699]
[1694016031776,7.12895729,25609.0,25608.0,0.01999699]
[1694016031977,6.98859584,25609.0,25608.0,0.01999699]
[1694016032192,6.92079584,25609.0,25608.0,0.01999699]
[1694016032819,6.82723872,25609.0,25608.0,0.01999699]
[1694016033005,6.92079584,25609.0,25608.0,0.01999699]
[1694016033652,6.85123872,25609.0,25608.0,0.01999699]
[1694016034021,6.80323872,25609.0,25608.0,0.01999699]
[1694016034223,6.82723872,25609.0,25608.0,0.01999699]
[1694016034422,6.85123872,25609.0,25608.0,0.01999699]
[1694016037239,5.11135427,25609.0,25608.0,0.01999699]
[1694016037449,4.74901474,25609.0,25608.0,0.05647288]
[1694016038556,5.70439368,25609.0,25608.0,0.05647288]
[1694016038955,5.70439368,25609.0,25608.0,0.01999699]
[1694016039132,5.94503895,25609.0,25608.0,0.05656659]
[1694016040558,6.01703895,25609.0,25608.0,0.05656659]
[1694016040773,6.01841895,25609.0,25608.0,0.05656659]
[1694016041018,6.02015895,25609.0,25608.0,0.05656659]
[1694016041219,6.02537895,25609.0,25608.0,0.05656659]
[1694016041495,6.02837895,25609.0,25608.0,0.05656659]
[1694016041698,6.02813895,25609.0,25608.0,0.01999699]
[1694016041895,6.02909895,25609.0,25608.0,0.01999699]
[1694016042092,6.02897895,25609.0,25608.0,0.01999699]
[1694016042417,6.02627895,25609.0,25608.0,0.01999699]
[1694016042603,5.90261895,25609.0,25608.0,0.01999699]
[1694016042810,5.94503895,25609.0,25608.0,0.01999699]
[1694016043445,6.01319895,25609.0,25608.0,0.01999699]
[1694016043679,5.94503895,25609.0,25608.0,0.01999699]
[1694016045883,5.77063501,25609.0,25608.0,0.01999699]
[1694016047393,5.84569501,25609.0,25608.0,0.01999699]
[1694016047597,5.83759501,25609.0,25608.0,0.01999699]
[1694016048001,5.83915501,25609.0,25608.0,0.01999699]
[1694016048203,5.83945501,25609.0,25608.0,0.01999699]
[1694016048658,5.83957501,25609.0,25608.0,0.01999699]
[1694016048902,5.84179501,25609.0,25608.0,0.01999699]
[1694016049138,5.84419501,25609.0,25608.0,0.01999699]
[1694016049339,5.84413501,25609.0,25608.0,0.01999699]
[1694016049545,5.84539501,25609.0,25608.0,0.01999699]
[1694016049745,5.84833501,25609.0,25608.0,0.01999699]
[1694016049981,5.83801501,25609.0,25608.0,0.01999699]
[1694016050217,5.83747501,25609.0,25608.0,0.01999699]
[1694016050446,5.83819501,25609.0,25608.0,0.01999699]
[1694016050627,5.93169213,25609.0,25608.0,0.01999699]
[1694016050834,5.83933501,25609.0,25608.0,0.01999699]
[1694016050962,5.93241213,25609.0,25608.0,0.01999699]
[1694016051377,5.93259213,25609.0,25608.0,0.01999699]
[1694016051581,5.93115213,25609.0,25608.0,0.01999699]
[1694016051787,5.93007213,25609.0,25608.0,0.01999699]
[1694016051989,5.86419213,25609.0,25608.0,0.01999699]
[1694016052186,5.93007213,25609.0,25608.0,0.01999699]
[1694016052597,5.93205213,25609.0,25608.0,0.01999699]
[1694016052797,5.93583213,25609.0,25608.0,0.01999699]
[1694016053022,5.93679213,25609.0,25608.0,0.01999699]
[1694016053227,5.93643213,25609.0,25608.0,0.01999699]
[1694016053427,5.93631213,25609.0,25608.0,0.01999699]
[1694016053626,5.93607213,25609.0,25608.0,0.01499699]
[1694016053839,5.93493213,25609.0,25608.0,0.01499699]
[1694016054062,5.93913213,25609.0,25608.0,0.01499699]
[1694016054270,5.93829213,25609.0,25608.0,0.01499699]
[1694016054471,5.94063213,25609.0,25608.0,0.01499699]
[1694016054715,5.93991213,25609.0,25608.0,0.01499699]
[1694016054979,5.93913213,25609.0,25608.0,0.01499699]
[1694016055179,5.94021213,25609.0,25608.0,0.01499699]
[1694016055381,5.93973213,25609.0,25608.0,0.01499699]
[1694016055663,5.93943213,25609.0,25608.0,0.01499699]
[1694016055860,6.07991358,25609.0,25608.0,0.01499699]
[1694016056090,5.94045213,25609.0,25608.0,0.01499699]
[1694016056296,5.94645213,25609.0,25608.0,0.01499699]
[1694016056477,5.94465213,25609.0,25608.0,0.01499699]
[1694016056674,5.94729213,25609.0,25608.0,0.01499699]
[1694016056902,6.08735358,25609.0,25608.0,0.01499699]
[1694016057115,6.08471358,25609.0,25608.0,0.01499699]
[1694016057324,6.08423358,25609.0,25608.0,0.01499699]
[1694016057537,0.06,25608.0,25604.0,0.01788198]
[1694016057743,0.1221,25605.0,25604.0,0.01788198]
[1694016057929,2.07093927,25605.0,25604.0,0.01788198]
[1694016058285,2.09093927,25605.0,25604.0,0.01788198]
[1694016058943,2.87203627,25605.0,25604.0,0.01788198]
[1694016059499,2.89603627,25605.0,25604.0,0.01788198]
[1694016060906,1.33384227,25605.0,25604.0,0.01788198]
[1694016061368,1.35784227,25605.0,25604.0,0.01788198]
[1694016062122,2.13893927,25605.0,25604.0,0.01788198]
[1694016063693,0.45464527,25605.0,25604.0,0.01788198]
[1694016063916,0.45464527,25605.0,25604.0,0.79900898]
[1694016064938,0.45464527,25605.0,25604.0,0.01788198]
[1694016065566,0.45464527,25605.0,25604.0,0.05509746]
[1694016066379,0.45464527,25605.0,25604.0,0.83622446]
[1694016066590,0.45464527,25605.0,25604.0,0.83572446]
[1694016066821,0.45464527,25605.0,25604.0,1.61685146]
[1694016067414,0.45464527,25605.0,25604.0,0.05459746]
[1694016067623,0.45464527,25605.0,25604.0,0.83572446]
[1694016067832,0.45464527,25605.0,25604.0,1.61685146]
[1694016068444,0.068,25605.0,25604.0,1.61685146]
[1694016069083,0.068,25605.0,25604.0,2.39797846]
[1694016069717,0.068,25605.0,25604.0,3.17910546]
[1694016069927,0.068,25605.0,25604.0,3.20976099]
[1694016069928,0.048,25605.0,25604.0,3.20976099]
[1694016070377,0.048,25605.0,25604.0,2.42863399]
[1694016072884,0.14168993,25605.0,25604.0,2.42863399]
[1694016073092,0.5283352,25605.0,25604.0,0.08525299]
[1694016073919,0.6688701,25605.0,25604.0,0.08525299]
[1694016074964,0.57518017,25605.0,25604.0,0.08525299]
[1694016077642,0.57518017,25605.0,25604.0,0.05459746]
[1694016077859,0.57518017,25605.0,25604.0,0.08525299]
[1694016078278,0.92138856,25605.0,25604.0,0.08525299]
[1694016078513,1.70248556,25605.0,25604.0,0.05459746]
[1694016078721,2.48358256,25605.0,25604.0,0.05459746]
[1694016082334,0.57518017,25605.0,25604.0,0.05459746]
[1694016084249,0.76256003,25605.0,25604.0,0.05459746]
[1694016084463,2.13737417,25605.0,25604.0,0.05459746]
[1694016084868,2.32475403,25605.0,25604.0,0.05459746]
[1694016085718,2.44685403,25605.0,25604.0,0.05459746]
[1694016086340,2.8334993,25605.0,25604.0,0.05459746]
[1694016086548,1.2713053,25605.0,25604.0,0.05459746]
[1694016086770,0.88466003,25605.0,25604.0,0.05459746]
[1694016088001,0.69728017,25605.0,25604.0,0.05459746]
[1694016088640,0.2823222,25605.0,25604.0,2.39797846]
[1694016088849,0.2823222,25605.0,25604.0,1.61685146]
[1694016089487,0.1885349,25605.0,25604.0,1.61685146]
[1694016090568,0.1885349,25605.0,25604.0,0.83572446]
[1694016090786,0.1885349,25605.0,25604.0,1.61685146]
[1694016091202,0.14178618,25605.0,25604.0,1.61685146]
[1694016091409,0.14178618,25605.0,25604.0,2.39797846]
[1694016092277,0.14178618,25605.0,25604.0,1.61685146]
[1694016093311,0.28232108,25605.0,25604.0,1.61685146]
[1694016093521,0.28232108,25605.0,25604.0,0.05459746]
[1694016093729,1.06341808,25605.0,25604.0,0.05459746]
[1694016093933,1.84451508,25605.0,25604.0,0.05459746]
[1694016094173,1.7507289,25605.0,25604.0,0.05459746]
[1694016094386,2.13737417,25605.0,25604.0,0.05459746]
[1694016094607,2.52401944,25605.0,25604.0,0.05459746]
[1694016094822,1.74292244,25605.0,25604.0,0.05459746]
[1694016095671,1.86502244,25605.0,25604.0,0.05459746]
[1694016096920,1.08392544,25605.0,25604.0,0.05459746]
[1694016097341,0.69728017,25605.0,25604.0,0.05459746]
[1694016097957,1.47837717,25605.0,25604.0,0.05459746]
[1694016098158,2.25947417,25605.0,25604.0,0.05459746]
[1694016099651,2.30631913,25605.0,25604.0,0.05459746]
[1694016099868,3.08741613,25605.0,25604.0,0.05459746]
[1694016100063,3.4740614,25605.0,25604.0,0.05459746]
[1694016100449,3.70828623,25605.0,25604.0,0.05459746]
[1694016100851,3.4740614,25605.0,25604.0,0.05459746]
[1694016101254,3.70828623,25605.0,25604.0,0.05459746]